[Event "Gibraltar Masters 18th"]
[Site "Gibraltar"]
[Date "2020.01.27"]
[Round "7.11"]
[White "Narayanan, SL."]
[Black "Khotenashvili, Bela"]
[Result "1/2-1/2"]
[ECO "B12"]
[WhiteElo "2637"]
[BlackElo "2446"]
[PlyCount "86"]
[EventDate "2020.01.21"]
[EventType "swiss"]
[EventRounds "10"]
[EventCountry "GGB"]
[SourceTitle "BritBase"]
[Source "John Saunders"]
[SourceDate "2021.06.05"]
[SourceVersion "1"]
[SourceVersionDate "2021.06.05"]
[SourceQuality "1"]
[TimeControl "40/100:0"]
[WhiteClock "0:48:02"]
[BlackClock "0:36:09"]

1. e4 {[%emt 0:00:00]} c6 {[%emt 0:00:00]} 2. d4 {[%emt 0:00:00]} d5 {[%emt 0:
00:00]} 3. e5 {[%emt 0:00:00]} Bf5 {[%emt 0:00:00]} 4. h4 {[%emt 0:00:00]} h5 {
[%emt 0:00:00]} 5. Bd3 {[%emt 0:00:00]} Bxd3 {[%emt 0:00:00]} 6. Qxd3 {[%emt 0:
00:00]} Qa5+ {[%emt 0:00:00]} 7. Nd2 {[%emt 0:00:00]} e6 {[%emt 0:00:00]} 8.
Ngf3 {[%emt 0:00:00]} Ne7 {[%emt 0:00:00]} 9. O-O {[%emt 0:00:00]} Nf5 {
[%emt 0:00:00]} 10. a4 {[%emt 0:00:00]} Qa6 {[%emt 0:00:00]} 11. c4 {[%emt 0:
00:00]} Be7 {[%emt 0:00:00]} 12. b3 {[%emt 0:00:00]} Nd7 {[%emt 0:00:00]} 13.
Ba3 {[%emt 0:00:00]} c5 {[%emt 0:00:00]} 14. dxc5 {[%emt 0:00:00]} Nxc5 {
[%emt 0:00:00]} 15. Qb1 {[%emt 0:00:00]} dxc4 {[%emt 0:00:00]} 16. Nxc4 {
[%emt 0:00:00]} b6 {[%emt 0:00:00]} 17. Rd1 {[%emt 0:00:00]} O-O {[%emt 0:00:
00]} 18. Nd6 {[%emt 0:00:00]} Bxd6 {[%emt 0:00:00]} 19. exd6 {[%emt 0:00:00]}
Rfd8 {[%emt 0:00:00]} 20. Ng5 {[%emt 0:00:00]} Qe2 {[%emt 0:00:00]} 21. Bxc5 {
[%emt 0:00:00]} bxc5 {[%emt 0:00:00]} 22. Qe4 {[%emt 0:00:00]} Qxe4 {[%emt 0:
00:00]} 23. Nxe4 {[%emt 0:00:00]} Rab8 {[%emt 0:00:00]} 24. d7 {[%emt 0:00:00]}
Nxh4 {[%emt 0:00:00]} 25. Nxc5 {[%emt 0:00:00]} Nf5 {[%emt 0:00:00]} 26. Rac1 {
[%emt 0:00:00]} Kf8 {[%emt 0:00:00]} 27. Rc4 {[%emt 0:00:00]} a5 {[%emt 0:00:
00]} 28. b4 {[%emt 0:00:00]} axb4 {[%emt 0:00:00]} 29. a5 {[%emt 0:00:00]} b3 {
[%emt 0:00:00]} 30. a6 {[%emt 0:00:00]} Ke7 {[%emt 0:00:27]} 31. a7 {[%emt 0:
00:00]} Ra8 {[%emt 0:00:00]} 32. Ra4 {[%emt 0:00:00]} e5 {[%emt 0:00:34]} 33.
f4 {[%emt 0:00:00]} Nd4 {[%emt 0:00:00]} 34. Re1 {[%emt 0:00:00]} Nc6 {[%emt 0:
00:03]} 35. Ra6 {[%emt 0:00:00]} Nxa7 {[%emt 0:00:00]} 36. Rxe5+ {[%emt 0:00:
00]} Kf8 {[%emt 0:00:00]} 37. Rxh5 {[%emt 0:00:00]} Rab8 {[%emt 0:00:00]} 38.
Ra1 {[%emt 0:00:00]} Nc6 {[%emt 0:00:00]} 39. Re1 {[%emt 0:00:00]} g6 {[%emt 0:
00:00]} 40. Rd5 {[%emt 0:00:00]} b2 {[%emt 0:00:00]} 41. Rb1 {[%emt 0:00:00]}
Rb4 {[%emt 0:00:00]} 42. Nd3 {[%emt 0:00:00]} Rd4 {[%emt 0:00:00]} 43. Rxd4 {
[%emt 0:00:00]} Nxd4 {[%emt 0:00:00]} 1/2-1/2

[Event "Gibraltar Masters 18th"]
[Site "Gibraltar"]
[Date "2020.01.27"]
[Round "7.12"]
[White "Mamedyarov, Shakhriyar"]
[Black "Muzychuk, Anna"]
[Result "1-0"]
[ECO "A34"]
[WhiteElo "2770"]
[BlackElo "2539"]
[PlyCount "59"]
[EventDate "2020.01.21"]
[EventType "swiss"]
[EventRounds "10"]
[EventCountry "GGB"]
[SourceTitle "BritBase"]
[Source "John Saunders"]
[SourceDate "2021.06.05"]
[SourceVersion "1"]
[SourceVersionDate "2021.06.05"]
[SourceQuality "1"]
[TimeControl "40/100:0"]
[WhiteClock "0:59:38"]
[BlackClock "0:00:48"]

1. Nf3 {[%emt 0:00:00]} c5 {[%emt 0:00:00]} 2. c4 {[%emt 0:00:00]} Nc6 {
[%emt 0:00:00]} 3. Nc3 {[%emt 0:00:00]} Nf6 {[%emt 0:00:00]} 4. e3 {[%emt 0:00:
00]} e5 {[%emt 0:00:00]} 5. d4 {[%emt 0:00:00]} e4 {[%emt 0:00:00]} 6. Ne5 {
[%emt 0:00:00]} g6 {[%emt 0:00:00]} 7. g4 {[%emt 0:00:00]} h6 {[%emt 0:00:00]}
8. Bg2 {[%emt 0:00:00]} Bg7 {[%emt 0:00:00]} 9. h3 {[%emt 0:00:00]} d5 {
[%emt 0:00:00]} 10. cxd5 {[%emt 0:00:00]} Nxd5 {[%emt 0:00:00]} 11. Nxe4 {
[%emt 0:00:00]} cxd4 {[%emt 0:00:00]} 12. exd4 {[%emt 0:00:00]} O-O {[%emt 0:
00:00]} 13. O-O {[%emt 0:00:00]} Re8 {[%emt 0:00:00]} 14. Re1 {[%emt 0:00:00]}
Nxe5 {[%emt 0:00:00]} 15. dxe5 {[%emt 0:00:00]} Rxe5 {[%emt 0:00:00]} 16. Be3 {
[%emt 0:00:00]} Re8 {[%emt 0:00:00]} 17. Bxh6 {[%emt 0:00:00]} Bxh6 {[%emt 0:
00:00]} 18. Qxd5 {[%emt 0:00:00]} Be6 {[%emt 0:00:00]} 19. Qxb7 {[%emt 0:00:00]
} Rb8 {[%emt 0:00:00]} 20. Qxa7 {[%emt 0:00:00]} Rxb2 {[%emt 0:00:00]} 21. Rad1
{[%emt 0:00:00]} Qh4 {[%emt 0:00:00]} 22. a4 {[%emt 0:00:00]} Bg7 {[%emt 0:00:
00]} 23. a5 {[%emt 0:00:00]} Ra2 {[%emt 0:00:00]} 24. a6 {[%emt 0:00:00]} Re7 {
[%emt 0:00:42]} 25. Qc5 {[%emt 0:00:00]} Rxa6 {[%emt 0:00:08]} 26. Rd8+ {
[%emt 0:00:00]} Bf8 {[%emt 0:00:00]} 27. Ng5 {[%emt 0:00:00]} Ra2 {[%emt 0:00:
01]} 28. Rf1 {[%emt 0:00:00]} Kg7 {[%emt 0:00:02]} 29. Qe5+ {[%emt 0:00:00]}
Kg8 {[%emt 0:00:00]} 30. Qf6 {[%emt 0:00:00]} 1-0

[Event "Gibraltar Masters 18th"]
[Site "Gibraltar"]
[Date "2020.01.27"]
[Round "7.13"]
[White "Topalov, Veselin"]
[Black "Kotronias, Vasilios"]
[Result "1-0"]
[ECO "B51"]
[WhiteElo "2738"]
[BlackElo "2526"]
[PlyCount "129"]
[EventDate "2020.01.21"]
[EventType "swiss"]
[EventRounds "10"]
[EventCountry "GGB"]
[SourceTitle "BritBase"]
[Source "John Saunders"]
[SourceDate "2021.06.05"]
[SourceVersion "1"]
[SourceVersionDate "2021.06.05"]
[SourceQuality "1"]
[TimeControl "40/100:0"]
[WhiteClock "0:56:37"]
[BlackClock "0:03:37"]

1. e4 {[%emt 0:00:00]} c5 {[%emt 0:00:00]} 2. Nf3 {[%emt 0:00:00]} d6 {[%emt 0:
00:00]} 3. Bb5+ {[%emt 0:00:00]} Nd7 {[%emt 0:00:00]} 4. a4 {[%emt 0:00:00]}
Ngf6 {[%emt 0:00:00]} 5. Nc3 {[%emt 0:00:00]} a6 {[%emt 0:00:00]} 6. Be2 {
[%emt 0:00:00]} b6 {[%emt 0:00:00]} 7. d4 {[%emt 0:00:00]} cxd4 {[%emt 0:00:00]
} 8. Qxd4 {[%emt 0:00:00]} Bb7 {[%emt 0:00:00]} 9. O-O {[%emt 0:00:00]} e6 {
[%emt 0:00:00]} 10. Rd1 {[%emt 0:00:00]} Qc7 {[%emt 0:00:00]} 11. Be3 {[%emt 0:
00:00]} Ng4 {[%emt 0:00:00]} 12. Bg5 {[%emt 0:00:00]} Rc8 {[%emt 0:00:00]} 13.
h3 {[%emt 0:00:00]} h6 {[%emt 0:00:00]} 14. Bh4 {[%emt 0:00:00]} Nge5 {[%emt 0:
00:00]} 15. Qe3 {[%emt 0:00:00]} Qc5 {[%emt 0:00:00]} 16. Nd4 {[%emt 0:00:00]}
g5 {[%emt 0:00:00]} 17. Bg3 {[%emt 0:00:00]} Be7 {[%emt 0:00:00]} 18. Ra3 {
[%emt 0:00:00]} h5 {[%emt 0:00:00]} 19. a5 {[%emt 0:00:00]} b5 {[%emt 0:00:00]}
20. Na2 {[%emt 0:00:00]} Qc7 {[%emt 0:00:00]} 21. Nb4 {[%emt 0:00:00]} Nc5 {
[%emt 0:00:00]} 22. Nxa6 {[%emt 0:00:00]} Bxa6 {[%emt 0:00:00]} 23. b4 {
[%emt 0:00:00]} Ncd7 {[%emt 0:00:00]} 24. Nxb5 {[%emt 0:00:00]} Bxb5 {[%emt 0:
00:00]} 25. Bxb5 {[%emt 0:00:00]} O-O {[%emt 0:00:00]} 26. c4 {[%emt 0:00:00]}
h4 {[%emt 0:00:00]} 27. Bh2 {[%emt 0:00:00]} Rfd8 {[%emt 0:00:00]} 28. Rc3 {
[%emt 0:00:00]} Nf8 {[%emt 0:00:00]} 29. f4 {[%emt 0:00:00]} gxf4 {[%emt 0:00:
00]} 30. Bxf4 {[%emt 0:00:00]} Nfg6 {[%emt 0:00:00]} 31. Bh2 {[%emt 0:00:00]}
Bf6 {[%emt 0:00:00]} 32. Rc2 {[%emt 0:00:00]} Rb8 {[%emt 0:00:00]} 33. Rf2 {
[%emt 0:00:00]} Qe7 {[%emt 0:00:00]} 34. a6 {[%emt 0:00:00]} Rdc8 {[%emt 0:00:
00]} 35. Kh1 {[%emt 0:00:00]} Ra8 {[%emt 0:00:00]} 36. Qe2 {[%emt 0:00:00]} Bg5
{[%emt 0:00:00]} 37. Rff1 {[%emt 0:00:00]} Kg7 {[%emt 0:00:00]} 38. Rd4 {
[%emt 0:00:25]} Qc7 {[%emt 0:00:00]} 39. Qf2 {[%emt 0:00:00]} Rd8 {[%emt 0:00:
00]} 40. Rfd1 {[%emt 0:00:00]} Qb6 {[%emt 0:00:29]} 41. Qe2 {[%emt 0:00:00]}
Bf4 {[%emt 0:00:00]} 42. Bg1 {[%emt 0:00:00]} Qc7 {[%emt 0:00:00]} 43. c5 {
[%emt 0:00:00]} d5 {[%emt 0:00:00]} 44. exd5 {[%emt 0:00:00]} Rxd5 {[%emt 0:00:
00]} 45. Rxd5 {[%emt 0:00:00]} exd5 {[%emt 0:00:00]} 46. Bd3 {[%emt 0:00:00]}
Nxd3 {[%emt 0:00:00]} 47. Qxd3 {[%emt 0:00:00]} Be5 {[%emt 0:00:00]} 48. b5 {
[%emt 0:00:00]} Qa5 {[%emt 0:00:00]} 49. Qxd5 {[%emt 0:00:00]} Re8 {[%emt 0:00:
00]} 50. c6 {[%emt 0:00:00]} Nf4 {[%emt 0:00:00]} 51. Qc4 {[%emt 0:00:00]} Qa3
{[%emt 0:00:00]} 52. Bh2 {[%emt 0:00:00]} Qe3 {[%emt 0:00:54]} 53. Rf1 {
[%emt 0:00:00]} Ne6 {[%emt 0:00:55]} 54. Qg4+ {[%emt 0:00:00]} Ng5 {[%emt 0:00:
10]} 55. Bxe5+ {[%emt 0:00:00]} Qxe5 {[%emt 0:00:11]} 56. b6 {[%emt 0:00:00]}
Qb5 {[%emt 0:00:00]} 57. Qf4 {[%emt 0:00:00]} Ne4 {[%emt 0:00:09]} 58. Qxf7+ {
[%emt 0:00:00]} Kh6 {[%emt 0:00:00]} 59. Qf4+ {[%emt 0:00:00]} Kg6 {[%emt 0:00:
00]} 60. Qg4+ {[%emt 0:00:00]} Ng5 {[%emt 0:00:00]} 61. Rc1 {[%emt 0:00:00]}
Qa5 {[%emt 0:00:00]} 62. Qxh4 {[%emt 0:00:00]} Qxb6 {[%emt 0:00:00]} 63. c7 {
[%emt 0:00:00]} Qxa6 {[%emt 0:00:00]} 64. Qg4 {[%emt 0:00:00]} Rc8 {[%emt 0:00:
00]} 65. h4 {[%emt 0:01:23]} 1-0

[Event "Gibraltar Masters 18th"]
[Site "Gibraltar"]
[Date "2020.01.27"]
[Round "7.14"]
[White "Hjartarson, Johann"]
[Black "Navara, David"]
[Result "0-1"]
[ECO "D45"]
[WhiteElo "2524"]
[BlackElo "2717"]
[PlyCount "68"]
[EventDate "2020.01.21"]
[EventType "swiss"]
[EventRounds "10"]
[EventCountry "GGB"]
[SourceTitle "BritBase"]
[Source "John Saunders"]
[SourceDate "2021.06.05"]
[SourceVersion "1"]
[SourceVersionDate "2021.06.05"]
[SourceQuality "1"]
[TimeControl "40/100:0"]
[WhiteClock "0:19:48"]
[BlackClock "0:36:32"]

1. d4 {[%emt 0:00:00]} Nf6 {[%emt 0:00:00]} 2. c4 {[%emt 0:00:00]} e6 {[%emt 0:
00:00]} 3. Nf3 {[%emt 0:00:00]} d5 {[%emt 0:00:00]} 4. Nc3 {[%emt 0:00:00]} c6
{[%emt 0:00:00]} 5. e3 {[%emt 0:00:00]} Nbd7 {[%emt 0:00:00]} 6. Qc2 {[%emt 0:
00:00]} Bd6 {[%emt 0:00:00]} 7. b3 {[%emt 0:00:00]} O-O {[%emt 0:00:00]} 8. Bb2
{[%emt 0:00:00]} e5 {[%emt 0:00:00]} 9. cxd5 {[%emt 0:00:00]} cxd5 {[%emt 0:00:
00]} 10. Nb5 {[%emt 0:00:00]} Bb4+ {[%emt 0:00:00]} 11. Bc3 {[%emt 0:00:00]}
Bxc3+ {[%emt 0:00:00]} 12. Qxc3 {[%emt 0:00:00]} Ne4 {[%emt 0:00:00]} 13. Qc7 {
[%emt 0:00:00]} Qe7 {[%emt 0:00:00]} 14. a3 {[%emt 0:00:00]} a6 {[%emt 0:00:00]
} 15. Nc3 {[%emt 0:00:00]} Nxc3 {[%emt 0:00:00]} 16. Qxc3 {[%emt 0:00:00]} e4 {
[%emt 0:00:00]} 17. Nd2 {[%emt 0:00:00]} Qg5 {[%emt 0:00:00]} 18. g3 {[%emt 0:
00:00]} Nf6 {[%emt 0:00:00]} 19. Bg2 {[%emt 0:00:00]} Qh5 {[%emt 0:00:00]} 20.
h3 {[%emt 0:00:00]} Bd7 {[%emt 0:00:00]} 21. a4 {[%emt 0:00:00]} Rac8 {[%emt 0:
00:00]} 22. Qb2 {[%emt 0:00:00]} Rc6 {[%emt 0:00:00]} 23. Rc1 {[%emt 0:00:00]}
Rxc1+ {[%emt 0:00:00]} 24. Qxc1 {[%emt 0:00:00]} Rc8 {[%emt 0:00:00]} 25. Qb2 {
[%emt 0:00:00]} b5 {[%emt 0:00:00]} 26. Bf1 {[%emt 0:00:00]} bxa4 {[%emt 0:00:
00]} 27. bxa4 {[%emt 0:00:00]} Bxa4 {[%emt 0:00:00]} 28. Be2 {[%emt 0:00:00]}
Qf5 {[%emt 0:00:00]} 29. Bxa6 {[%emt 0:00:00]} Rc2 {[%emt 0:00:00]} 30. Qa3 {
[%emt 0:00:00]} Qe6 {[%emt 0:00:00]} 31. Bb7 {[%emt 0:00:00]} Qd7 {[%emt 0:00:
00]} 32. Rf1 {[%emt 0:00:00]} h6 {[%emt 0:00:00]} 33. Ba8 {[%emt 0:00:00]} Bb5
{[%emt 0:00:00]} 34. Rg1 {[%emt 0:00:00]} Qa7 {[%emt 0:00:00]} 0-1

[Event "Gibraltar Masters 18th"]
[Site "Gibraltar"]
[Date "2020.01.27"]
[Round "7.15"]
[White "Sadhwani, Raunak"]
[Black "Matlakov, Maxim"]
[Result "1/2-1/2"]
[ECO "E09"]
[WhiteElo "2522"]
[BlackElo "2698"]
[PlyCount "60"]
[EventDate "2020.01.21"]
[EventType "swiss"]
[EventRounds "10"]
[EventCountry "GGB"]
[SourceTitle "BritBase"]
[Source "John Saunders"]
[SourceDate "2021.06.05"]
[SourceVersion "1"]
[SourceVersionDate "2021.06.05"]
[SourceQuality "1"]
[TimeControl "40/100:0"]
[WhiteClock "0:30:34"]
[BlackClock "0:20:59"]

1. Nf3 {[%emt 0:00:00]} d5 {[%emt 0:00:00]} 2. g3 {[%emt 0:00:00]} Nd7 {
[%emt 0:00:00]} 3. d4 {[%emt 0:00:00]} Ngf6 {[%emt 0:00:00]} 4. Bg2 {[%emt 0:
00:00]} e6 {[%emt 0:00:00]} 5. c4 {[%emt 0:00:00]} Be7 {[%emt 0:00:00]} 6. O-O
{[%emt 0:00:00]} O-O {[%emt 0:00:00]} 7. Qc2 {[%emt 0:00:00]} c6 {[%emt 0:00:
00]} 8. Nbd2 {[%emt 0:00:00]} b6 {[%emt 0:00:00]} 9. e4 {[%emt 0:00:00]} dxc4 {
[%emt 0:00:00]} 10. Nxc4 {[%emt 0:00:00]} Bb7 {[%emt 0:00:00]} 11. Bg5 {
[%emt 0:00:00]} b5 {[%emt 0:00:00]} 12. Ncd2 {[%emt 0:00:00]} c5 {[%emt 0:00:
00]} 13. Bxf6 {[%emt 0:00:00]} Bxf6 {[%emt 0:00:00]} 14. dxc5 {[%emt 0:00:00]}
Rc8 {[%emt 0:00:00]} 15. Nb3 {[%emt 0:00:00]} Be7 {[%emt 0:00:00]} 16. Rfd1 {
[%emt 0:00:00]} Qe8 {[%emt 0:00:00]} 17. Na5 {[%emt 0:00:00]} Nxc5 {[%emt 0:00:
00]} 18. Nxb7 {[%emt 0:00:00]} Nxb7 {[%emt 0:00:00]} 19. Qe2 {[%emt 0:00:00]}
a6 {[%emt 0:00:00]} 20. e5 {[%emt 0:00:00]} Na5 {[%emt 0:00:00]} 21. Nd4 {
[%emt 0:00:00]} Bc5 {[%emt 0:00:00]} 22. Nb3 {[%emt 0:00:00]} Nxb3 {[%emt 0:00:
00]} 23. axb3 {[%emt 0:00:00]} Qe7 {[%emt 0:00:00]} 24. Rxa6 {[%emt 0:00:00]}
b4 {[%emt 0:00:00]} 25. Be4 {[%emt 0:00:00]} Rfd8 {[%emt 0:00:00]} 26. Raa1 {
[%emt 0:00:00]} g6 {[%emt 0:00:00]} 27. Kg2 {[%emt 0:00:00]} Kg7 {[%emt 0:00:
00]} 28. Rxd8 {[%emt 0:00:00]} Rxd8 {[%emt 0:00:00]} 29. Rd1 {[%emt 0:00:00]}
Rxd1 {[%emt 0:00:00]} 30. Qxd1 {[%emt 0:00:00]} Qc7 {[%emt 0:00:00]} 1/2-1/2

[Event "Gibraltar Masters 18th"]
[Site "Gibraltar"]
[Date "2020.01.27"]
[Round "7.16"]
[White "Jones, Gawain C B"]
[Black "Krysa, Leandro"]
[Result "1-0"]
[ECO "C41"]
[WhiteElo "2679"]
[BlackElo "2522"]
[PlyCount "63"]
[EventDate "2020.01.21"]
[EventType "swiss"]
[EventRounds "10"]
[EventCountry "GGB"]
[SourceTitle "BritBase"]
[Source "John Saunders"]
[SourceDate "2021.06.05"]
[SourceVersion "1"]
[SourceVersionDate "2021.06.05"]
[SourceQuality "1"]
[TimeControl "40/100:0"]
[WhiteClock "0:14:19"]
[BlackClock "0:03:46"]

1. e4 {[%emt 0:00:00]} d6 {[%emt 0:00:00]} 2. d4 {[%emt 0:00:00]} Nf6 {[%emt 0:
00:00]} 3. Nc3 {[%emt 0:00:00]} e5 {[%emt 0:00:00]} 4. Nf3 {[%emt 0:00:00]}
Nbd7 {[%emt 0:00:00]} 5. Bc4 {[%emt 0:00:00]} Be7 {[%emt 0:00:00]} 6. O-O {
[%emt 0:00:00]} O-O {[%emt 0:00:00]} 7. Re1 {[%emt 0:00:00]} c6 {[%emt 0:00:00]
} 8. a4 {[%emt 0:00:00]} Qc7 {[%emt 0:00:00]} 9. h3 {[%emt 0:00:00]} Re8 {
[%emt 0:00:00]} 10. Ba2 {[%emt 0:00:00]} h6 {[%emt 0:00:00]} 11. Be3 {[%emt 0:
00:00]} Nf8 {[%emt 0:00:00]} 12. Nh4 {[%emt 0:00:00]} Ng4 {[%emt 0:00:00]} 13.
hxg4 {[%emt 0:00:00]} Bxh4 {[%emt 0:00:00]} 14. d5 {[%emt 0:00:00]} Qe7 {
[%emt 0:00:00]} 15. b4 {[%emt 0:00:00]} Qf6 {[%emt 0:00:00]} 16. dxc6 {[%emt 0:
00:00]} bxc6 {[%emt 0:00:00]} 17. b5 {[%emt 0:00:00]} Qg6 {[%emt 0:00:00]} 18.
g5 {[%emt 0:00:00]} Bxg5 {[%emt 0:00:00]} 19. bxc6 {[%emt 0:00:00]} Be6 {
[%emt 0:00:00]} 20. Bd5 {[%emt 0:00:00]} Bxd5 {[%emt 0:00:00]} 21. exd5 {
[%emt 0:00:00]} f5 {[%emt 0:00:00]} 22. Bxg5 {[%emt 0:00:00]} hxg5 {[%emt 0:00:
00]} 23. g4 {[%emt 0:00:00]} e4 {[%emt 0:00:00]} 24. gxf5 {[%emt 0:00:00]} Qxf5
{[%emt 0:00:00]} 25. Nb5 {[%emt 0:00:00]} Ng6 {[%emt 0:00:00]} 26. Nxd6 {
[%emt 0:00:00]} Qf4 {[%emt 0:00:00]} 27. Nxe8 {[%emt 0:00:00]} Nh4 {[%emt 0:00:
00]} 28. Qh5 {[%emt 0:00:00]} Qf5 {[%emt 0:00:00]} 29. Ra3 {[%emt 0:00:00]} g6
{[%emt 0:00:00]} 30. Nf6+ {[%emt 0:00:00]} Qxf6 {[%emt 0:00:00]} 31. Qg4 {
[%emt 0:00:00]} Rf8 {[%emt 0:00:00]} 32. Qe6+ {[%emt 0:01:46]} 1-0

[Event "Gibraltar Masters 18th"]
[Site "Gibraltar"]
[Date "2020.01.27"]
[Round "7.17"]
[White "Saric, Ivan"]
[Black "Henderson De La Fuente, Lance"]
[Result "1-0"]
[ECO "A21"]
[WhiteElo "2655"]
[BlackElo "2492"]
[PlyCount "99"]
[EventDate "2020.01.21"]
[EventType "swiss"]
[EventRounds "10"]
[EventCountry "GGB"]
[SourceTitle "BritBase"]
[Source "John Saunders"]
[SourceDate "2021.06.05"]
[SourceVersion "1"]
[SourceVersionDate "2021.06.05"]
[SourceQuality "1"]
[TimeControl "40/100:0"]
[WhiteClock "0:48:17"]
[BlackClock "0:42:07"]

1. c4 {[%emt 0:00:00]} e5 {[%emt 0:00:00]} 2. Nc3 {[%emt 0:00:00]} d6 {[%emt 0:
00:00]} 3. g3 {[%emt 0:00:00]} Be7 {[%emt 0:00:00]} 4. Bg2 {[%emt 0:00:00]} f5
{[%emt 0:00:00]} 5. d3 {[%emt 0:00:00]} Nf6 {[%emt 0:00:00]} 6. f4 {[%emt 0:00:
00]} O-O {[%emt 0:00:00]} 7. Nf3 {[%emt 0:00:00]} exf4 {[%emt 0:00:00]} 8. gxf4
{[%emt 0:00:00]} c6 {[%emt 0:00:00]} 9. O-O {[%emt 0:00:00]} Na6 {[%emt 0:00:
00]} 10. Kh1 {[%emt 0:00:00]} Re8 {[%emt 0:00:00]} 11. Rb1 {[%emt 0:00:00]} Nc7
{[%emt 0:00:00]} 12. b4 {[%emt 0:00:00]} Bd7 {[%emt 0:00:00]} 13. b5 {[%emt 0:
00:00]} Bf8 {[%emt 0:00:00]} 14. bxc6 {[%emt 0:00:00]} Bxc6 {[%emt 0:00:00]}
15. Qc2 {[%emt 0:00:00]} Rc8 {[%emt 0:00:00]} 16. d4 {[%emt 0:26:51]} Be4 {
[%emt 0:00:00]} 17. Nxe4 fxe4 18. Ng5 {[%emt 0:00:00]} d5 {[%emt 0:00:00]} 19.
c5 {[%emt 0:00:00]} h6 {[%emt 0:00:00]} 20. Nh3 {[%emt 0:00:00]} b6 {[%emt 0:
00:00]} 21. cxb6 {[%emt 0:00:00]} Na8 {[%emt 0:00:00]} 22. Qa4 {[%emt 0:00:00]}
Nxb6 {[%emt 0:00:00]} 23. Qxa7 {[%emt 0:00:00]} Nc4 {[%emt 0:00:00]} 24. Qa4 {
[%emt 0:00:00]} Ra8 {[%emt 0:00:00]} 25. Qb3 {[%emt 0:00:00]} Bd6 {[%emt 0:00:
00]} 26. Nf2 {[%emt 0:00:00]} Qa5 {[%emt 0:00:00]} 27. Ra1 {[%emt 0:00:00]}
Rab8 {[%emt 0:00:00]} 28. Qh3 {[%emt 0:00:00]} Qa7 {[%emt 0:00:00]} 29. e3 {
[%emt 0:00:00]} h5 {[%emt 0:00:00]} 30. Rg1 {[%emt 0:00:00]} Qa5 {[%emt 0:00:
00]} 31. Nd1 {[%emt 0:00:00]} Bb4 {[%emt 0:00:00]} 32. a3 {[%emt 0:00:00]} Bf8
{[%emt 0:00:00]} 33. Bf1 {[%emt 0:00:00]} Qa4 {[%emt 0:00:00]} 34. Be2 {
[%emt 0:00:00]} Qc2 {[%emt 0:00:11]} 35. Bxh5 {[%emt 0:00:00]} Nxh5 {[%emt 0:
00:10]} 36. Qxh5 {[%emt 0:00:00]} Red8 {[%emt 0:00:00]} 37. a4 {[%emt 0:00:00]}
Rb6 {[%emt 0:00:13]} 38. h3 {[%emt 0:00:00]} Ra6 {[%emt 0:00:00]} 39. Rg2 {
[%emt 0:00:00]} Qb3 {[%emt 0:00:09]} 40. Kh2 {[%emt 0:00:00]} Rxa4 {[%emt 0:00:
00]} 41. Rxa4 {[%emt 0:00:00]} Qxa4 {[%emt 0:01:12]} 42. Nf2 {[%emt 0:00:00]}
Qe8 {[%emt 0:00:00]} 43. Rg6 {[%emt 0:00:00]} Qa4 {[%emt 0:00:00]} 44. Ng4 {
[%emt 0:00:00]} Qc2+ {[%emt 0:00:00]} 45. Kg3 {[%emt 0:00:00]} Qxc1 {[%emt 0:
00:00]} 46. Nf6+ {[%emt 0:00:00]} Kf7 {[%emt 0:00:00]} 47. Rh6+ {[%emt 0:00:00]
} Ke6 {[%emt 0:00:00]} 48. Qg4+ {[%emt 0:00:00]} Kd6 {[%emt 0:00:00]} 49. Ne8+
{[%emt 0:00:00]} Ke7 {[%emt 0:00:00]} 50. Qe6# {[%emt 0:00:00]} 1-0

[Event "Gibraltar Masters 18th"]
[Site "Gibraltar"]
[Date "2020.01.27"]
[Round "7.18"]
[White "Gordon, Stephen J"]
[Black "Deac, Bogdan-Daniel"]
[Result "1/2-1/2"]
[ECO "A14"]
[WhiteElo "2504"]
[BlackElo "2626"]
[PlyCount "100"]
[EventDate "2020.01.21"]
[EventType "swiss"]
[EventRounds "10"]
[EventCountry "GGB"]
[SourceTitle "BritBase"]
[Source "John Saunders"]
[SourceDate "2021.06.05"]
[SourceVersion "1"]
[SourceVersionDate "2021.06.05"]
[SourceQuality "1"]
[TimeControl "40/100:0"]
[WhiteClock "0:15:18"]
[BlackClock "1:42:31"]

1. c4 {[%emt 0:00:00]} Nf6 {[%emt 0:00:00]} 2. Nf3 {[%emt 0:00:00]} e6 {
[%emt 0:00:00]} 3. g3 {[%emt 0:00:00]} d5 {[%emt 0:00:00]} 4. Bg2 {[%emt 0:00:
00]} Be7 {[%emt 0:00:00]} 5. O-O {[%emt 0:00:00]} O-O {[%emt 0:00:00]} 6. b3 {
[%emt 0:00:00]} d4 {[%emt 0:00:00]} 7. e3 {[%emt 0:00:00]} c5 {[%emt 0:00:00]}
8. Ne5 {[%emt 0:00:00]} Qc7 {[%emt 0:00:00]} 9. exd4 {[%emt 0:00:00]} cxd4 {
[%emt 0:00:00]} 10. Re1 {[%emt 0:00:00]} Nc6 {[%emt 0:00:00]} 11. Qe2 {[%emt 0:
00:00]} Bd6 {[%emt 0:00:00]} 12. Nxc6 {[%emt 0:00:00]} bxc6 {[%emt 0:00:00]}
13. Ba3 {[%emt 0:00:00]} Rd8 {[%emt 0:00:00]} 14. Bxd6 {[%emt 0:00:00]} Rxd6 {
[%emt 0:00:00]} 15. c5 {[%emt 0:00:00]} Rd8 {[%emt 0:00:00]} 16. Na3 {[%emt 0:
00:00]} Rb8 {[%emt 0:00:00]} 17. Nc4 {[%emt 0:00:00]} Nd7 {[%emt 0:00:00]} 18.
Rac1 {[%emt 0:00:00]} Ba6 {[%emt 0:00:00]} 19. Qf3 {[%emt 0:00:00]} Bxc4 {
[%emt 0:00:00]} 20. Rxc4 {[%emt 0:00:00]} Rbc8 {[%emt 0:00:00]} 21. Rxd4 {
[%emt 0:00:00]} Nxc5 {[%emt 0:00:00]} 22. Rxd8+ {[%emt 0:00:00]} Qxd8 {[%emt 0:
00:00]} 23. d4 {[%emt 0:00:00]} Qxd4 {[%emt 0:00:00]} 24. Rd1 {[%emt 0:00:00]}
Qf6 {[%emt 0:00:00]} 25. Qxf6 {[%emt 0:00:00]} gxf6 {[%emt 0:00:00]} 26. Rd6 {
[%emt 0:00:00]} Na6 {[%emt 0:00:00]} 27. Rd7 {[%emt 0:00:00]} Rc7 {[%emt 0:00:
00]} 28. Rxc7 {[%emt 0:00:00]} Nxc7 {[%emt 0:00:00]} 29. Bxc6 {[%emt 0:00:00]}
Kf8 {[%emt 0:00:00]} 30. Kg2 {[%emt 0:00:00]} Ke7 {[%emt 0:00:00]} 31. Kh3 {
[%emt 0:00:00]} f5 {[%emt 0:00:00]} 32. Kh4 {[%emt 0:00:00]} a5 {[%emt 0:00:00]
} 33. Kg5 {[%emt 0:00:00]} Na6 {[%emt 0:00:00]} 34. Bb5 {[%emt 0:00:06]} Nb4 {
[%emt 0:00:00]} 35. a3 {[%emt 0:00:00]} Nd5 {[%emt 0:00:00]} 36. Bc4 {[%emt 0:
00:00]} Nf6 {[%emt 0:00:00]} 37. f3 {[%emt 0:00:00]} Nd7 {[%emt 0:00:00]} 38.
Kh6 {[%emt 0:00:17]} Ne5 {[%emt 0:00:00]} 39. Be2 {[%emt 0:00:00]} Nc6 {
[%emt 0:00:00]} 40. Kxh7 {[%emt 0:00:24]} Nd4 {[%emt 0:00:00]} 41. Bd1 {
[%emt 0:01:17]} e5 {[%emt 0:00:00]} 42. b4 {[%emt 0:00:00]} axb4 {[%emt 0:00:
00]} 43. axb4 {[%emt 0:00:00]} e4 {[%emt 0:00:00]} 44. fxe4 {[%emt 0:00:00]}
fxe4 {[%emt 0:00:00]} 45. g4 {[%emt 0:00:00]} Nf3 {[%emt 0:00:00]} 46. b5 {
[%emt 0:00:00]} Nxh2 {[%emt 0:00:00]} 47. b6 {[%emt 0:00:00]} Kd6 {[%emt 0:00:
00]} 48. Kg7 {[%emt 0:00:00]} Kc6 {[%emt 0:00:00]} 49. Kxf7 {[%emt 0:00:00]}
Nxg4 {[%emt 0:00:00]} 50. Bxg4 {[%emt 0:00:00]} Kxb6 {[%emt 0:00:00]} 1/2-1/2